bitfinex/quotes_BTCUSD_20251124
["timestamp","ask_amount","ask_price","bid_price","bid_amount"]
[1764012542911,0.02115517,88720.0,88719.0,0.24797393]
[1764012544209,0.323,88726.0,88723.0,0.22541953]
[1764012544437,0.0324143,88725.0,88719.0,0.02254308]
[1764012544646,0.23670807,88717.0,88711.0,0.34402899]
[1764012544846,0.23671306,88715.0,88711.0,0.34411555]
[1764012545076,0.01127205,88715.0,88712.0,0.22544667]
[1764012545374,0.01127141,88720.0,88716.0,0.22543774]
[1764012545681,0.01127103,88723.0,88718.0,0.22543141]
[1764012545682,0.01127128,88721.0,88718.0,0.22543141]
[1764012546000,0.22543339,88718.0,88717.0,0.03441042]
[1764012546205,0.22544555,88714.0,88712.0,0.11857817]
[1764012546365,0.01127179,88717.0,88715.0,0.22544078]
[1764012546567,0.23670413,88719.0,88716.0,0.22543847]
[1764012546792,0.22543146,88719.0,88712.0,0.11857817]
[1764012546998,0.01127179,88717.0,88713.0,0.01257865]
[1764012547305,0.01127141,88720.0,88717.0,0.001]
[1764012547489,0.23670194,88720.0,88717.0,0.22643586]
[1764012547684,0.23669873,88721.0,88717.0,0.001]
[1764012547894,0.22542608,88721.0,88717.0,0.001]
[1764012548304,0.01127141,88720.0,88716.0,0.22543653]
[1764012548648,0.01127116,88722.0,88718.0,0.2254311]
[1764012548649,0.23669639,88722.0,88718.0,0.2254311]
[1764012548777,0.03240577,88721.0,88718.0,0.2254311]
[1764012548981,0.01127141,88720.0,88718.0,0.22543266]
[1764012549184,0.23670118,88720.0,88717.0,0.22543593]
[1764012549494,0.0112709,88724.0,88718.0,0.05821219]
[1764012549696,0.02113308,88723.0,88721.0,0.22542489]
[1764012549900,0.22541789,88725.0,88721.0,0.22542489]
[1764012549901,0.02113308,88722.0,88721.0,0.22542489]
[1764012550472,0.01127154,88719.0,88716.0,0.2254374]
[1764012550689,0.01127179,88717.0,88715.0,0.2254389]
[1764012550892,0.23669529,88722.0,88716.0,0.03566841]
[1764012551092,0.23669808,88721.0,88716.0,0.03566841]
[1764012551309,0.01127141,88720.0,88718.0,0.22543141]
[1764012551509,0.01127128,88721.0,88719.0,0.22542889]
[1764012551782,0.01127154,88719.0,88716.0,0.26110434]
[1764012551945,0.23670239,88719.0,88716.0,0.26110434]
[1764012552140,0.23669825,88721.0,88717.0,0.08432347]
[1764012552373,0.01127116,88722.0,88719.0,0.22543069]
[1764012552571,0.2366923,88723.0,88720.0,0.22542644]
[1764012553145,0.23668529,88726.0,88722.0,0.22542112]
[1764012553361,0.23669674,88722.0,88719.0,0.22543069]
[1764012553807,0.23669674,88722.0,88720.0,0.22542747]
[1764012554028,0.23670257,88719.0,88716.0,0.03566841]
[1764012554229,0.23670257,88719.0,88717.0,0.24521454]
[1764012554507,0.23669999,88720.0,88717.0,0.01977869]
[1764012555077,0.22543146,88719.0,88717.0,0.01977869]
[1764012555231,0.22543146,88719.0,88712.0,0.11857817]
[1764012555232,0.01127205,88715.0,88712.0,0.11857817]
[1764012555430,0.2254461,88713.0,88712.0,0.11857817]
[1764012555768,0.22544407,88714.0,88712.0,0.11857817]
[1764012555968,0.2254461,88713.0,88712.0,0.11857817]
[1764012556134,0.2254461,88713.0,88712.0,0.1987931]
[1764012557116,0.01127205,88715.0,88712.0,0.42424011]
[1764012557321,0.01127192,88716.0,88713.0,0.22544598]
[1764012557521,0.01127192,88716.0,88712.0,0.42424011]
[1764012557522,0.01127205,88715.0,88712.0,0.1997931]
[1764012557818,0.2254461,88713.0,88712.0,0.11857817]
[1764012558398,0.2254461,88713.0,88712.0,0.11957817]
[1764012558673,0.5484461,88713.0,88712.0,0.11957817]
[1764012558832,0.56957535,88713.0,88712.0,0.11957817]
[1764012559021,0.56957535,88713.0,88712.0,0.11857817]
[1764012559223,0.56957535,88713.0,88712.0,0.11957817]
[1764012559425,0.34412925,88713.0,88712.0,0.13154482]
[1764012559662,0.0338925,88715.0,88712.0,0.13154482]
[1764012559874,0.27060632,88715.0,88712.0,0.15408968]
[1764012560034,0.22544546,88714.0,88712.0,0.37953815]
[1764012560231,0.23671382,88715.0,88713.0,0.22544602]
[1764012560481,0.22544359,88714.0,88713.0,0.04115959]
[1764012560654,0.2254461,88713.0,88712.0,0.13054482]
[1764012562070,0.2254461,88713.0,88712.0,0.13154482]
[1764012562456,0.2254461,88713.0,88712.0,0.11957817]
[1764012562457,0.2465772,88713.0,88712.0,0.11957817]
[1764012563736,0.2465772,88713.0,88712.0,0.001]
[1764012564058,0.22544864,88712.0,88711.0,8.833e-05]
[1764012564254,0.24657974,88712.0,88711.0,8.833e-05]
[1764012569830,0.24757974,88712.0,88711.0,8.833e-05]
[1764012572724,0.0221311,88712.0,88711.0,8.833e-05]
[1764012572919,0.0221311,88712.0,88711.0,0.24809463]
[1764012573132,0.0221311,88712.0,88711.0,0.02264345]
[1764012573326,0.0221311,88712.0,88711.0,8.833e-05]
[1764012573548,0.0211311,88712.0,88711.0,8.833e-05]
[1764012573766,0.0211311,88713.0,88711.0,8.833e-05]
[1764012573947,0.0211311,88712.0,88711.0,8.833e-05]
[1764012574149,0.0211311,88713.0,88711.0,0.00108833]
[1764012574344,0.0211311,88713.0,88712.0,0.0474553]
[1764012574593,0.0211311,88713.0,88711.0,0.00108833]
[1764012575008,0.0211311,88713.0,88711.0,8.833e-05]
[1764012575553,0.0211311,88713.0,88711.0,0.22553904]
[1764012575959,0.0112709,88724.0,88714.0,0.2254428]
[1764012575960,0.03388863,88719.0,88714.0,0.2254428]
[1764012576157,0.02113134,88718.0,88714.0,0.2254428]
[1764012576411,0.02113134,88717.0,88715.0,0.04509818]
[1764012576573,0.02113134,88716.0,88715.0,0.04509818]
[1764012577096,0.03388863,88719.0,88713.0,0.22544489]
[1764012577292,0.03388863,88719.0,88712.0,0.22544657]
[1764012577293,0.03388863,88719.0,88714.0,0.22544285]
[1764012577497,0.03388863,88719.0,88715.0,0.001]
[1764012577899,0.03388863,88719.0,88714.0,0.22544285]
[1764012578107,0.01127179,88717.0,88711.0,8.833e-05]
[1764012578292,0.03388863,88719.0,88712.0,0.22544699]
[1764012578490,0.01127179,88717.0,88715.0,0.001]
[1764012579329,0.01127166,88718.0,88715.0,0.001]
[1764012579491,0.03388863,88719.0,88715.0,0.001]
[1764012579898,0.03388863,88719.0,88713.0,0.22544581]
[1764012580105,0.03388863,88719.0,88714.0,0.0744661]
[1764012580304,0.03388863,88719.0,88714.0,0.0754661]
[1764012580616,0.03388863,88719.0,88714.0,0.29990919]
[1764012580826,0.03388863,88719.0,88715.0,0.2254407]
[1764012581134,0.03388863,88719.0,88715.0,0.2264407]
[1764012581350,0.33427141,88720.0,88716.0,0.08201114]
[1764012581490,0.323,88720.0,88716.0,0.08201114]
[1764012581897,0.01127179,88717.0,88711.0,8.833e-05]
[1764012582530,0.323,88720.0,88711.0,0.02263344]
[1764012582730,0.02514742,88753.0,88711.0,0.02263344]
[1764012582731,0.00160605,88735.0,88734.0,0.22539274]
[1764012583146,0.00160605,88735.0,88734.0,0.33800345]
[1764012583345,0.00160605,88735.0,88734.0,0.44351641]
[1764012583783,0.00160605,88735.0,88734.0,0.5060394]
[1764012584196,0.00160605,88735.0,88734.0,0.5170394]
[1764012584410,0.00160605,88735.0,88734.0,0.5070394]
[1764012584617,0.00160605,88735.0,88734.0,0.5060394]
[1764012584906,0.00160605,88735.0,88734.0,0.5180394]
[1764012585106,0.00160605,88735.0,88734.0,0.5080394]
[1764012585310,0.00160605,88735.0,88734.0,0.5090394]
[1764012585533,0.00160605,88735.0,88734.0,0.5190394]
[1764012585735,0.00160605,88735.0,88734.0,0.8410394]
[1764012586049,0.0004,88770.0,88769.0,0.22530387]
[1764012586373,0.0004,88770.0,88769.0,0.43741124]
[1764012587134,0.00049741,88770.0,88769.0,0.43741124]
[1764012587725,0.00049741,88770.0,88769.0,0.43841124]
[1764012589059,0.00049741,88770.0,88769.0,0.43941124]
[1764012589643,0.00049741,88770.0,88769.0,0.10149666]
[1764012589846,0.00049741,88770.0,88769.0,0.002]
[1764012591160,0.00049741,88770.0,88769.0,0.001]
[1764012591362,0.00049741,88770.0,88769.0,0.002]
[1764012591594,0.00049741,88770.0,88769.0,0.001]
[1764012591765,0.22686885,88770.0,88769.0,0.001]
[1764012592005,0.00156751,88770.0,88769.0,0.001]
[1764012592378,0.00156751,88770.0,88769.0,0.02363184]
[1764012593494,0.22686885,88770.0,88769.0,0.02363184]
[1764012594095,0.22686885,88770.0,88769.0,0.001]
[1764012594887,0.00156751,88770.0,88769.0,0.001]
[1764012595913,0.00156751,88770.0,88769.0,0.22630387]
[1764012597123,0.00156751,88770.0,88769.0,0.001]
[1764012598663,0.22686885,88770.0,88769.0,0.001]
[1764012598866,0.22686885,88770.0,88769.0,0.02659666]
[1764012599067,0.00156751,88770.0,88769.0,0.02659666]
[1764012599501,0.22686885,88770.0,88769.0,0.001]
[1764012600322,0.00156751,88770.0,88769.0,0.001]
[1764012600520,0.00156751,88770.0,88769.0,0.22630387]
[1764012600749,0.00156751,88770.0,88769.0,0.001]
[1764012601121,0.00156751,88770.0,88769.0,0.02353038]
[1764012601336,0.00156751,88770.0,88769.0,0.04912618]
[1764012602109,0.00156751,88770.0,88769.0,0.11164917]
[1764012602643,0.00156751,88770.0,88769.0,0.12164917]
[1764012602864,0.00156751,88770.0,88769.0,0.11616324]
[1764012603220,0.0004,88780.0,88769.0,0.11616324]
[1764012603221,0.0004,88780.0,88779.0,0.61080149]
[1764012603427,0.00079257,88780.0,88779.0,0.80011752]
[1764012604107,0.00079257,88780.0,88779.0,0.81011752]
[1764012604329,0.00079257,88780.0,88779.0,0.80011752]
[1764012604782,0.00079257,88780.0,88779.0,1.20011752]
[1764012604999,0.00079257,88780.0,88779.0,1.20111752]
[1764012605594,0.00079257,88780.0,88779.0,1.20211752]
[1764012606413,0.00079257,88780.0,88779.0,1.21211752]
[1764012606762,0.00079257,88780.0,88779.0,1.20211752]
[1764012607067,0.00079257,88780.0,88779.0,1.21211752]
[1764012607464,0.00079257,88780.0,88779.0,1.20211752]
[1764012608931,0.00109823,88780.0,88779.0,1.20211752]
[1764012609363,0.00109823,88780.0,88779.0,1.21211752]
[1764012609682,0.00109823,88780.0,88779.0,1.20211752]
[1764012612124,0.00109823,88780.0,88779.0,1.21211752]
[1764012612291,0.00109823,88780.0,88779.0,0.87199752]
[1764012612487,0.00109823,88780.0,88779.0,0.41659453]
[1764012612688,0.00109823,88780.0,88779.0,0.4211086]
[1764012613746,0.00109823,88780.0,88779.0,0.48363159]
[1764012614165,0.00109823,88780.0,88779.0,0.49363159]
[1764012614613,0.00109823,88780.0,88779.0,0.81663159]
[1764012615707,1e-08,88780.0,88779.0,0.93520976]
[1764012616013,1e-08,88780.0,88779.0,2.93520976]
[1764012616207,1e-08,88780.0,88779.0,3.33520976]
[1764012616450,1e-08,88780.0,88779.0,3.33420976]
[1764012616968,1e-08,88780.0,88779.0,3.32520976]
[1764012617196,1e-08,88780.0,88779.0,3.31808976]
[1764012617373,1e-08,88780.0,88779.0,1.32420976]
[1764012617573,1e-08,88780.0,88779.0,1.32520976]
[1764012617772,1e-08,88780.0,88779.0,1.31708976]
[1764012617981,1e-08,88780.0,88779.0,1.32008976]
[1764012618161,1e-08,88780.0,88779.0,1.26468677]
[1764012618359,1e-08,88780.0,88779.0,0.8129886]
[1764012618566,1e-08,88780.0,88779.0,0.8159886]
[1764012618762,1e-08,88780.0,88779.0,0.81759453]
[1764012618965,1e-08,88780.0,88779.0,0.51661071]
[1764012619185,1e-08,88780.0,88779.0,0.12373071]
[1764012619387,0.24628655,88780.0,88779.0,0.001]
[1764012619619,0.24628655,88780.0,88769.0,0.0255958]
[1764012619620,0.01126455,88774.0,88769.0,0.0255958]
[1764012619797,0.02101058,88773.0,88770.0,0.00712]
[1764012620013,0.02101058,88773.0,88763.0,0.11261071]
[1764012620014,0.01126519,88769.0,88763.0,0.11261071]
[1764012620216,0.01126544,88767.0,88763.0,0.11261071]
[1764012620417,0.22529863,88772.0,88766.0,0.22531134]
[1764012620740,0.22529863,88772.0,88764.0,0.00712]
[1764012620741,0.01126544,88767.0,88764.0,0.00712]
[1764012620881,0.24633128,88766.0,88764.0,0.00712]
[1764012621094,0.22531287,88766.0,88765.0,0.01197307]
[1764012621294,0.22532012,88763.0,88761.0,0.00712]
[1764012621499,0.23657542,88767.0,88761.0,0.00712]
[1764012621500,0.0210197,88762.0,88761.0,0.00712]
[1764012621794,0.0210197,88762.0,88761.0,0.02965241]
[1764012622654,0.0210197,88762.0,88761.0,0.03065241]
[1764012622815,0.0210197,88762.0,88761.0,0.14369626]
[1764012623240,0.0210202,88762.0,88761.0,0.15596246]
[1764012623462,0.323,88789.0,88765.0,0.0112657]
[1764012623636,0.02101915,88787.0,88786.0,0.2252595]
[1764012624045,0.02101915,88787.0,88786.0,0.24778557]
[1764012624238,0.23648984,88799.0,88793.0,0.22524231]
[1764012624427,0.23648984,88799.0,88792.0,0.22524432]
[1764012624622,0.01126164,88797.0,88793.0,0.22524298]
[1764012624823,0.94698999,88800.0,88794.0,0.22523882]
[1764012625076,0.01126151,88798.0,88792.0,0.22524403]
[1764012625251,0.01126202,88794.0,88793.0,0.07913429]
[1764012625460,0.22526327,88785.0,88784.0,0.00712]
[1764012626035,0.22526073,88786.0,88784.0,0.00712]
[1764012626236,0.22526073,88786.0,88771.0,0.22529747]
[1764012626237,0.0112643,88776.0,88748.0,0.03386755]
[1764012626436,0.01126468,88773.0,88766.0,0.22531044]
[1764012626687,0.0112643,88776.0,88771.0,0.22529795]
[1764012626888,0.22528732,88776.0,88769.0,0.22530387]
[1764012627089,0.01126341,88783.0,88773.0,0.22529363]
[1764012627311,0.23653055,88784.0,88776.0,0.22528502]
[1764012627611,0.23653055,88784.0,88778.0,0.22528029]
[1764012627612,0.01126341,88783.0,88778.0,0.22528029]
[1764012627814,0.27039652,88783.0,88779.0,0.04731025]
[1764012628123,0.27039652,88783.0,88779.0,0.0698381]
[1764012628124,0.22527398,88781.0,88779.0,0.0698381]
[1764012628323,0.03386457,88783.0,88779.0,0.2252777]
[1764012628528,0.01126354,88782.0,88777.0,0.22528199]
[1764012628654,0.01126354,88782.0,88779.0,0.22527834]
[1764012628859,0.01126354,88782.0,88779.0,0.24780619]
[1764012629109,0.23651586,88789.0,88779.0,0.02252785]
[1764012629314,0.03386098,88788.0,88787.0,0.22525795]
[1764012629485,0.27037942,88788.0,88787.0,0.04505244]
[1764012629693,0.01126329,88784.0,88778.0,0.22528019]
[1764012629893,0.01126354,88782.0,88779.0,0.02252785]
[1764012630096,0.22525711,88788.0,88783.0,0.22526793]
[1764012630283,0.03386098,88793.0,88785.0,0.22526327]
[1764012630284,0.23650859,88792.0,88785.0,0.22526327]
[1764012630467,0.01126227,88792.0,88786.0,0.02252607]
[1764012630671,0.0112624,88791.0,88788.0,0.22525432]
[1764012630916,0.23662197,88794.0,88788.0,0.22525432]
[1764012630917,0.0001177,88794.0,88791.0,0.22524741]
[1764012631082,0.0001177,88794.0,88792.0,0.22524405]
[1764012632104,0.0001177,88794.0,88793.0,0.22524298]
[1764012634199,0.0001177,88794.0,88793.0,0.22624298]
[1764012634419,0.0001177,88794.0,88793.0,0.33486821]
[1764012634997,0.0001177,88794.0,88793.0,0.10962523]
[1764012635241,0.0001177,88794.0,88793.0,0.0008647]
[1764012635383,0.0001177,88794.0,88793.0,0.22610768]
[1764012636656,0.0001177,88794.0,88793.0,0.0008647]
[1764012636822,0.0001177,88794.0,88793.0,0.22610768]
[1764012637025,0.0001177,88794.0,88793.0,0.28629063]
[1764012637324,0.0001177,88794.0,88793.0,0.06104765]
[1764012637540,0.0001177,88794.0,88793.0,0.0008647]
[1764012637951,0.0001177,88794.0,88793.0,0.22610768]
[1764012638650,0.0001177,88794.0,88793.0,0.24863197]
[1764012640898,0.0001177,88794.0,88793.0,0.22610768]
[1764012641115,0.0001177,88794.0,88793.0,0.24863197]
[1764012641333,0.0001177,88794.0,88793.0,0.35552147]
[1764012641558,0.22535814,88794.0,88793.0,0.1077542]
[1764012641762,0.22535814,88794.0,88793.0,0.0008647]
[1764012641968,0.22535814,88794.0,88793.0,0.0079847]
[1764012642081,0.22535814,88794.0,88793.0,0.0008647]
[1764012643422,0.22535814,88794.0,88782.0,0.11857817]
[1764012643423,0.22526835,88783.0,88782.0,0.11857817]
[1764012643730,0.22526835,88783.0,88782.0,0.13043599]
[1764012644304,0.01126278,88788.0,88782.0,0.13043599]
[1764012644503,0.01126291,88787.0,88783.0,0.02252683]
[1764012644711,0.22525654,88788.0,88783.0,0.02252683]
[1764012644886,0.2365244,88786.0,88783.0,0.02252683]
[1764012645086,0.01126291,88787.0,88784.0,0.0603515]
[1764012645401,0.23651876,88788.0,88784.0,0.28561695]
[1764012645601,0.23652188,88787.0,88784.0,0.0603515]
[1764012645796,0.01126278,88788.0,88784.0,0.0603515]
[1764012646002,0.23651822,88789.0,88784.0,0.0603515]
[1764012646336,0.22525542,88789.0,88785.0,0.28821039]
[1764012646536,0.01126278,88788.0,88785.0,0.06294714]
[1764012646769,0.01126227,88792.0,88785.0,0.06294714]
[1764012646943,0.0001177,88794.0,88787.0,0.22525652]
[1764012647144,0.0001177,88794.0,88785.0,0.06294714]
[1764012647302,0.0001177,88794.0,88793.0,0.22524298]
[1764012648003,0.0001177,88794.0,88793.0,0.24776727]
[1764012648493,0.0001177,88794.0,88793.0,0.22524298]
[1764012648915,0.0001177,88794.0,88793.0,0.22624298]
[1764012649521,0.0001177,88794.0,88793.0,0.24876727]
[1764012649664,0.0001177,88794.0,88793.0,0.35473269]
[1764012649865,0.0001177,88794.0,88793.0,0.3332084]
[1764012651361,0.0001177,88794.0,88793.0,0.22724298]
[1764012651652,0.0001177,88794.0,88793.0,0.24976727]
[1764012655059,0.0001177,88794.0,88793.0,0.22724298]
[1764012655864,0.0001177,88794.0,88793.0,0.24976727]
[1764012656050,0.0001177,88794.0,88793.0,0.25876727]
[1764012656250,0.0001177,88794.0,88793.0,0.33404659]
[1764012656512,0.0001177,88794.0,88793.0,0.33504659]
[1764012656670,0.0001177,88794.0,88793.0,0.33404659]
[1764012657074,0.0001177,88794.0,88793.0,0.33604659]
[1764012657323,0.0001177,88794.0,88793.0,0.33704659]
[1764012658226,0.0001177,88794.0,88793.0,0.003]
[1764012658412,0.0001177,88794.0,88793.0,0.23536298]
[1764012659016,0.0001177,88794.0,88793.0,0.00912]
[1764012659219,0.0001177,88794.0,88793.0,0.002]
[1764012659541,0.22535814,88794.0,88793.0,0.001]
[1764012659689,0.22535814,88794.0,88793.0,0.002]
[1764012661805,0.23650867,88792.0,88785.0,0.22526111]
[1764012662193,0.01126265,88789.0,88786.0,0.02323811]
[1764012662397,0.01126227,88792.0,88786.0,0.02323811]
[1764012662563,0.0001177,88794.0,88789.0,0.22525146]
[1764012662747,0.0112624,88791.0,88786.0,0.02323811]
[1764012662953,0.23652081,88788.0,88782.0,0.22527088]
[1764012663120,0.23652081,88788.0,88781.0,0.00712]
[1764012663121,0.01126303,88786.0,88783.0,0.02252683]
[1764012663320,0.2365291,88784.0,88781.0,0.00712]
[1764012664410,0.01126316,88785.0,88782.0,0.22527075]
[1764012664556,0.23652171,88787.0,88783.0,0.22526624]
[1764012664897,0.23652425,88786.0,88782.0,0.22527075]
[1764012665087,0.01126303,88786.0,88783.0,0.22526688]
[1764012665480,0.23652864,88785.0,88782.0,0.06929395]
[1764012665696,0.22526835,88783.0,88782.0,0.06929395]
[1764012665859,0.22527088,88782.0,88781.0,0.00712]
[1764012666060,0.01126481,88772.0,88752.0,0.11857817]
[1764012666393,0.01126481,88772.0,88766.0,0.22531045]
[1764012666598,0.0112643,88776.0,88767.0,0.00712]
[1764012666840,0.22527029,88783.0,88782.0,0.001]
[1764012667226,0.01126278,88788.0,88782.0,0.001]
[1764012667464,0.01126252,88790.0,88782.0,0.001]
[1764012667465,0.22524384,88793.0,88782.0,0.00812]
[1764012667694,0.22562534,88800.0,88793.0,0.22524298]
[1764012667867,0.0004,88800.0,88793.0,0.27029178]
[1764012668525,0.0004,88800.0,88793.0,0.27741178]
[1764012669550,0.23674252,88796.0,88793.0,0.0521688]
[1764012669751,0.00024445,88796.0,88793.0,0.22624298]
[1764012669954,0.00024445,88796.0,88793.0,0.25488727]
[1764012670082,0.00024445,88796.0,88793.0,0.23236298]
[1764012671364,0.00024445,88796.0,88793.0,0.23336298]
[1764012671508,0.00024445,88796.0,88793.0,0.23436298]
[1764012671708,0.00024445,88796.0,88793.0,0.32987945]
[1764012672297,0.00024445,88796.0,88793.0,0.002]
[1764012672511,0.01150621,88796.0,88793.0,0.002]
[1764012672767,0.00024445,88796.0,88793.0,0.002]
[1764012672963,0.00024445,88796.0,88793.0,0.24976727]
[1764012674192,0.00024445,88796.0,88793.0,0.24776727]
[1764012674394,0.00024445,88796.0,88793.0,0.02252429]
[1764012674585,0.00024445,88796.0,88793.0,0.02352429]
[1764012674872,0.01150621,88796.0,88793.0,0.09416365]
[1764012675067,0.00024445,88796.0,88793.0,0.31940663]
[1764012675268,0.00024445,88796.0,88793.0,0.29688234]
[1764012677614,0.01150621,88796.0,88793.0,0.29688234]
[1764012677907,0.01150621,88796.0,88793.0,0.001]
[1764012677908,0.00024445,88796.0,88793.0,0.001]
[1764012678059,0.00024445,88796.0,88793.0,0.23336298]
[1764012678461,0.01150621,88796.0,88793.0,0.00812]
[1764012678681,0.22535814,88794.0,88793.0,0.001]
[1764012680274,0.54835814,88794.0,88793.0,0.001]
[1764012680659,0.56945315,88794.0,88793.0,0.001]
[1764012680863,0.56945315,88794.0,88750.0,0.4]
[1764012680864,0.23659363,88760.0,88741.0,0.01126874]
[1764012681097,0.01126659,88758.0,88754.0,0.22534035]
[1764012681268,0.01126608,88762.0,88757.0,0.22533415]
[1764012681479,0.22532703,88760.0,88755.0,0.22533815]
[1764012681771,0.23658818,88762.0,88751.0,0.00712]
[1764012681972,0.22529719,88772.0,88764.0,0.22531605]
[1764012682151,0.01126443,88775.0,88767.0,0.22530726]
[1764012682347,0.01126481,88772.0,88767.0,0.22530726]
[1764012682666,0.01126468,88773.0,88768.0,0.02253064]
[1764012682873,0.22531003,88767.0,88763.0,0.00712]
[1764012683030,0.22531003,88767.0,88751.0,0.24915669]
[1764012683031,0.01126659,88758.0,88751.0,0.02380764]
[1764012683235,0.01126659,88758.0,88752.0,0.23246651]
[1764012683456,0.01126671,88757.0,88752.0,0.23246651]
[1764012683657,0.23659229,88761.0,88752.0,0.23246651]
[1764012683861,0.22532708,88760.0,88756.0,0.22533661]
[1764012684176,0.01126582,88764.0,88756.0,0.22533554]
[1764012684391,0.01126608,88762.0,88757.0,0.05579566]
[1764012684567,0.23655827,88774.0,88757.0,0.05579566]
[1764012684766,0.01126494,88771.0,88766.0,0.22531006]
[1764012685091,0.0112643,88776.0,88767.0,0.02253089]
[1764012685237,0.0112643,88776.0,88766.0,0.22530955]
[1764012685238,0.01126494,88771.0,88766.0,0.22530929]
[1764012685442,0.01126494,88771.0,88767.0,0.22530841]
[1764012685642,0.01126481,88772.0,88769.0,0.22530387]
[1764012685857,0.01126468,88773.0,88769.0,0.22530387]
[1764012686058,0.01126468,88773.0,88768.0,0.06759321]
[1764012686059,0.22530134,88770.0,88768.0,0.06759321]
[1764012686290,0.23655322,88775.0,88755.0,0.03380091]
[1764012686508,0.01126455,88774.0,88768.0,0.22530551]
[1764012686693,0.23655322,88775.0,88764.0,0.00712]
[1764012686876,0.22528451,88777.0,88770.0,0.22529971]
[1764012687081,0.01126367,88781.0,88765.0,0.0225314]
[1764012687281,0.22529201,88774.0,88766.0,0.02549762]
[1764012687482,0.22529201,88774.0,88767.0,0.02253089]
[1764012687651,0.23654747,88779.0,88771.0,0.22529667]
[1764012687893,0.22526618,88784.0,88764.0,0.00712]
[1764012687894,0.01126291,88787.0,88772.0,0.02252962]
[1764012688119,0.01126291,88787.0,88764.0,0.01838582]
[1764012688120,0.01126341,88783.0,88778.0,0.22527879]
[1764012688491,0.23653047,88784.0,88780.0,0.22527536]
[1764012688746,0.23652929,88784.0,88781.0,0.0675844]
[1764012688973,0.01126329,88784.0,88781.0,0.0675844]
[1764012689249,0.22527088,88782.0,88781.0,0.0675844]
[1764012689423,0.22528865,88775.0,88774.0,0.02252911]
[1764012689626,0.01126443,88775.0,88769.0,0.02253038]
[1764012689830,0.01126417,88777.0,88769.0,0.02253038]
[1764012690025,0.01126443,88775.0,88772.0,0.22529624]
[1764012690227,0.23655046,88776.0,88773.0,0.02252937]
[1764012690414,0.23655046,88776.0,88773.0,0.04863381]
[1764012690609,0.01126405,88778.0,88775.0,0.22528833]
[1764012690809,0.01126405,88778.0,88773.0,0.04863381]
[1764012690810,0.01126329,88784.0,88779.0,0.22527828]
[1764012691124,0.01126303,88786.0,88781.0,0.22527283]
[1764012691348,0.01126303,88786.0,88777.0,0.22528103]
[1764012691349,0.01126329,88784.0,88777.0,0.22528103]
[1764012691562,0.2365296,88784.0,88779.0,0.22527846]
[1764012691767,0.01126265,88789.0,88778.0,0.04992045]
[1764012691768,0.0112624,88791.0,88778.0,0.04992045]
[1764012692064,0.01126303,88786.0,88782.0,0.22526908]
[1764012692361,0.01126214,88793.0,88777.0,0.00712]
[1764012692362,0.01126278,88788.0,88783.0,0.02823095]
[1764012692558,0.01126291,88787.0,88783.0,0.02823095]
[1764012692797,0.01126291,88787.0,88783.0,0.22526787]
[1764012692798,0.23652112,88787.0,88783.0,0.22526787]
[1764012692986,0.01126265,88789.0,88785.0,0.22526319]
[1764012693185,0.01126227,88792.0,88786.0,0.22526029]
[1764012693423,0.01126227,88792.0,88777.0,0.00712]
[1764012693424,0.01126252,88790.0,88777.0,0.00712]
[1764012693629,0.01126252,88790.0,88783.0,0.2252674]
[1764012693630,0.23651948,88788.0,88783.0,0.2252674]
[1764012693838,0.01126278,88788.0,88784.0,0.27103089]
[1764012694041,0.23651868,88788.0,88784.0,0.27103089]
[1764012694399,0.01126227,88792.0,88784.0,0.27103089]
[1764012694608,0.22526327,88785.0,88784.0,0.04576588]
[1764012694766,0.22526327,88785.0,88777.0,0.00712]
[1764012694767,0.01126379,88780.0,88772.0,0.11857817]
[1764012694969,0.01126379,88780.0,88774.0,0.22529033]
[1764012695179,0.23654242,88779.0,88775.0,0.22528816]
[1764012695421,0.01126392,88779.0,88769.0,0.11857817]
[1764012695626,0.01126481,88772.0,88770.0,0.00712]
[1764012695833,0.23655576,88774.0,88771.0,0.02383089]
[1764012696035,0.01126506,88770.0,88769.0,0.00712]
[1764012696234,0.2252988,88771.0,88769.0,0.00751257]
[1764012696548,0.22530134,88770.0,88769.0,0.00751257]
[1764012696902,0.23656143,88772.0,88769.0,0.23281565]
[1764012697052,0.23656143,88772.0,88769.0,0.00751257]
[1764012697237,0.23656109,88772.0,88769.0,0.00751257]
[1764012697433,0.01126405,88778.0,88770.0,0.02328259]
[1764012697637,0.01126455,88774.0,88771.0,0.2252975]
[1764012697996,0.23656147,88772.0,88769.0,0.00851257]
[1764012698200,0.2365518,88776.0,88771.0,0.22529845]
[1764012698399,0.01126443,88775.0,88772.0,0.22529626]
[1764012698745,0.2365518,88776.0,88773.0,0.22529337]
[1764012698970,0.2365518,88776.0,88774.0,0.03936259]
[1764012699596,0.01126367,88781.0,88774.0,0.03936259]
[1764012699852,0.01126354,88782.0,88774.0,0.03936259]
[1764012700131,0.01126405,88778.0,88774.0,0.26465375]
[1764012700335,0.00712,88791.0,88780.0,0.2252746]
[1764012700539,0.01126303,88786.0,88781.0,0.22527102]
[1764012700740,0.01126291,88787.0,88782.0,0.2252694]
[1764012700953,0.01126278,88788.0,88784.0,0.22526524]
[1764012701106,0.23652389,88786.0,88781.0,0.22527125]
[1764012701312,0.23652111,88787.0,88782.0,0.25502307]
[1764012701622,0.23652111,88787.0,88783.0,0.22526583]
[1764012701991,0.01126252,88790.0,88787.0,0.22525811]
[1764012702197,0.01150621,88796.0,88790.0,0.22524999]
[1764012702444,0.23650273,88794.0,88782.0,0.02975461]
[1764012702747,0.01126214,88793.0,88790.0,0.22524566]
[1764012703003,0.01126227,88792.0,88781.0,0.00712]
[1764012703204,0.23650363,88794.0,88790.0,0.22524923]
[1764012703424,0.00024445,88796.0,88794.0,0.2252403]
[1764012703632,0.00024445,88796.0,88795.0,0.2252379]
[1764012703756,0.00024445,88796.0,88795.0,0.31533435]
[1764012704440,0.00024445,88796.0,88795.0,0.09009645]
[1764012704641,0.00024445,88796.0,88795.0,0.2252379]
[1764012705155,0.00024445,88796.0,88793.0,0.22524238]
[1764012705331,0.00024445,88796.0,88791.0,0.11973071]
[1764012705575,0.00024445,88796.0,88794.0,0.22524044]
[1764012705720,0.00024445,88796.0,88795.0,0.2252379]
[1764012705921,0.00024445,88796.0,88795.0,0.32730882]
[1764012707527,0.00024445,88796.0,88794.0,0.22523958]
[1764012707749,0.00024445,88796.0,88795.0,0.2252379]
[1764012709361,0.00024445,88796.0,88791.0,0.11973071]
[1764012709555,0.00024445,88796.0,88795.0,0.2252379]
[1764012710281,0.00024445,88796.0,88791.0,0.11261071]
[1764012710598,0.22524298,88793.0,88792.0,0.06343222]
[1764012710794,0.22524298,88793.0,88792.0,0.00712]
[1764012711157,0.01126176,88796.0,88792.0,0.00712]
[1764012711362,0.01126176,88796.0,88784.0,0.34384322]
[1764012711363,0.22525344,88789.0,88784.0,0.11857817]
[1764012711734,0.22526327,88785.0,88784.0,0.11857817]
[1764012711918,0.0112643,88776.0,88773.0,0.00712]
[1764012712109,0.23654819,88777.0,88774.0,0.0683417]